[Event "Early-Titled-Tuesday-Blitz-April-16-2024"]
[Site "Chess.com"]
[Date "2024.04.16"]
[Round "3"]
[White "ExchangeAB"]
[Black "cristiano78"]
[Result "1-0"]
[WhiteElo "2439"]
[BlackElo "2248"]
[TimeControl "180+1"]
[EndTime "8:26:53 PDT"]
[Termination "ExchangeAB won by resignation"]

1. d4 {[%clk 0:03:00.9]} 1... Nf6 {[%clk 0:02:57.6]} 2. Nf3 {[%clk 0:03:00.8]}
2... g6 {[%clk 0:02:57.8]} 3. c4 {[%clk 0:03:00.4]} 3... Bg7 {[%clk 0:02:57.9]}
4. g3 {[%clk 0:03:01.1]} 4... d6 {[%clk 0:02:57.2]} 5. Bg2 {[%clk 0:03:01.5]}
5... O-O {[%clk 0:02:58]} 6. O-O {[%clk 0:03:02.1]} 6... Nc6 {[%clk 0:02:58.5]}
7. Nc3 {[%clk 0:03:01.8]} 7... Bf5 {[%clk 0:02:57]} 8. a3 {[%clk 0:02:56.3]}
8... Ne4 {[%clk 0:02:54.3]} 9. Bd2 {[%clk 0:02:54.8]} 9... Nxd2 {[%clk
0:02:48.2]} 10. Qxd2 {[%clk 0:02:54.6]} 10... Qd7 {[%clk 0:02:41.4]} 11. Rfe1
{[%clk 0:02:49]} 11... Bh3 {[%clk 0:02:39.7]} 12. Bh1 {[%clk 0:02:49]} 12... h6
{[%clk 0:02:39.5]} 13. b4 {[%clk 0:02:43]} 13... e5 {[%clk 0:02:36.6]} 14. dxe5
{[%clk 0:02:33.5]} 14... dxe5 {[%clk 0:02:32.4]} 15. Qxd7 {[%clk 0:02:26.5]}
15... Bxd7 {[%clk 0:02:31.6]} 16. Rad1 {[%clk 0:02:27]} 16... Rad8 {[%clk
0:02:30.9]} 17. Nd5 {[%clk 0:02:25.8]} 17... Be6 {[%clk 0:02:14.7]} 18. e3
{[%clk 0:02:10.3]} 18... e4 {[%clk 0:02:09.5]} 19. Nd2 {[%clk 0:02:06.3]} 19...
Bxd5 {[%clk 0:02:07.5]} 20. cxd5 {[%clk 0:02:06.1]} 20... Rxd5 {[%clk
0:02:06.7]} 21. Bxe4 {[%clk 0:02:04.9]} 21... Rd6 {[%clk 0:02:06.4]} 22. Nc4
{[%clk 0:02:04]} 22... Rxd1 {[%clk 0:02:05.7]} 23. Rxd1 {[%clk 0:02:04.9]} 23...
Rd8 {[%clk 0:02:02.2]} 24. Rb1 {[%clk 0:01:53.9]} 24... a6 {[%clk 0:01:53]} 25.
Bxc6 {[%clk 0:01:53.5]} 25... bxc6 {[%clk 0:01:52.4]} 26. Na5 {[%clk 0:01:53.2]}
26... Rd6 {[%clk 0:01:50.5]} 27. Rb3 {[%clk 0:01:47.1]} 27... Kf8 {[%clk
0:01:49.9]} 28. Nb7 {[%clk 0:01:46.8]} 28... Rd5 {[%clk 0:01:44.8]} 29. Kg2
{[%clk 0:01:33.8]} 29... f5 {[%clk 0:01:42.7]} 30. h3 {[%clk 0:01:32.5]} 30...
Ke7 {[%clk 0:01:35]} 31. Kf3 {[%clk 0:01:31.9]} 31... Bf6 {[%clk 0:01:33.3]} 32.
g4 {[%clk 0:01:32.1]} 32... fxg4+ {[%clk 0:01:32.3]} 33. hxg4 {[%clk 0:01:33]}
33... h5 {[%clk 0:01:31]} 34. gxh5 {[%clk 0:01:32.6]} 34... gxh5 {[%clk
0:01:30]} 35. Nc5 {[%clk 0:01:20.2]} 35... a5 {[%clk 0:01:27.8]} 36. Ne4 {[%clk
0:01:19.1]} 36... axb4 {[%clk 0:01:27]} 37. Rxb4 {[%clk 0:01:17.7]} 37... h4
{[%clk 0:01:23.6]} 38. Nxf6 {[%clk 0:01:15.8]} 38... Kxf6 {[%clk 0:01:23.4]} 39.
Rxh4 {[%clk 0:01:15.7]} 39... Ra5 {[%clk 0:01:21]} 40. Rh6+ {[%clk 0:01:15.5]}
40... Ke7 {[%clk 0:01:19.6]} 41. Rxc6 {[%clk 0:01:16.4]} 41... Rxa3 {[%clk
0:01:15.3]} 42. Rxc7+ {[%clk 0:01:16.5]} 42... Kf6 {[%clk 0:01:16]} 43. Rc4
{[%clk 0:01:16.6]} 1-0

[Event "Early-Titled-Tuesday-Blitz-April-16-2024"]
[Site "Chess.com"]
[Date "2024.04.16"]
[Round "3"]
[White "Caroexpert"]
[Black "kecalk"]
[Result "0-1"]
[WhiteElo "2681"]
[BlackElo "2525"]
[TimeControl "180+1"]
[EndTime "8:26:54 PDT"]
[Termination "kecalk won by resignation"]

1. Nf3 {[%clk 0:02:54.6]} 1... d5 {[%clk 0:02:57.3]} 2. d4 {[%clk 0:02:54.5]}
2... Nf6 {[%clk 0:02:57.2]} 3. c4 {[%clk 0:02:52.9]} 3... e6 {[%clk 0:02:57]} 4.
Bf4 {[%clk 0:02:45.2]} 4... dxc4 {[%clk 0:02:52.9]} 5. Qa4+ {[%clk 0:02:43.7]}
5... Nbd7 {[%clk 0:02:32.5]} 6. Qxc4 {[%clk 0:02:38.2]} 6... Bd6 {[%clk
0:02:32.7]} 7. Bg5 {[%clk 0:02:33.3]} 7... h6 {[%clk 0:02:27.9]} 8. Bh4 {[%clk
0:02:31.8]} 8... a6 {[%clk 0:02:24.1]} 9. Nc3 {[%clk 0:02:28.6]} 9... b5 {[%clk
0:02:21.5]} 10. Qb3 {[%clk 0:02:27.2]} 10... Bb7 {[%clk 0:02:17.4]} 11. e3
{[%clk 0:02:24.5]} 11... c5 {[%clk 0:02:13.3]} 12. Rd1 {[%clk 0:02:19.2]} 12...
cxd4 {[%clk 0:01:51]} 13. Nxd4 {[%clk 0:02:15.6]} 13... Nc5 {[%clk 0:01:50]} 14.
Qc2 {[%clk 0:02:14.5]} 14... b4 {[%clk 0:01:38.8]} 15. Na4 {[%clk 0:02:09.9]}
15... Be4 {[%clk 0:01:34.5]} 16. Qxc5 {[%clk 0:01:53.9]} 16... Bxc5 {[%clk
0:01:32.4]} 17. Nxc5 {[%clk 0:01:54.8]} 17... Bd5 {[%clk 0:01:26.4]} 18. e4
{[%clk 0:01:42.9]} 18... Qa5 {[%clk 0:00:52.8]} 19. exd5 {[%clk 0:01:05]} 19...
b3+ {[%clk 0:00:51.2]} 20. Ke2 {[%clk 0:01:00.4]} 20... Qxc5 {[%clk 0:00:51.4]}
21. Nxb3 {[%clk 0:00:59.7]} 21... Qc4+ {[%clk 0:00:51]} 22. Kf3 {[%clk
0:00:59.6]} 22... Qe4+ {[%clk 0:00:47.5]} 0-1

[Event "Early-Titled-Tuesday-Blitz-April-16-2024"]
[Site "Chess.com"]
[Date "2024.04.16"]
[Round "3"]
[White "Road2GM3000"]
[Black "viktorskliarov"]
[Result "0-1"]
[WhiteElo "2455"]
[BlackElo "2627"]
[TimeControl "180+1"]
[EndTime "8:26:56 PDT"]
[Termination "viktorskliarov won by resignation"]

1. d4 {[%clk 0:03:00.9]} 1... Nf6 {[%clk 0:02:59.5]} 2. c4 {[%clk 0:03:00.8]}
2... e6 {[%clk 0:02:58.6]} 3. Nc3 {[%clk 0:03:01.4]} 3... Bb4 {[%clk 0:02:53.3]}
4. Nf3 {[%clk 0:03:01.5]} 4... b6 {[%clk 0:02:48.6]} 5. Bg5 {[%clk 0:03:00.7]}
5... h6 {[%clk 0:02:48.2]} 6. Bh4 {[%clk 0:03:00.9]} 6... g5 {[%clk 0:02:48.5]}
7. Bg3 {[%clk 0:03:01.6]} 7... Ne4 {[%clk 0:02:48.4]} 8. Qc2 {[%clk 0:03:02.3]}
8... Bb7 {[%clk 0:02:48.2]} 9. e3 {[%clk 0:03:03]} 9... f5 {[%clk 0:02:35.1]}
10. Bd3 {[%clk 0:03:02.8]} 10... Bxc3+ {[%clk 0:02:34.7]} 11. bxc3 {[%clk
0:03:02.1]} 11... d6 {[%clk 0:02:35.2]} 12. d5 {[%clk 0:03:02.4]} 12... Na6
{[%clk 0:02:26.9]} 13. Nd4 {[%clk 0:03:02.2]} 13... Nac5 {[%clk 0:02:21.4]} 14.
f3 {[%clk 0:03:02.3]} 14... Nxd3+ {[%clk 0:02:16.9]} 15. Qxd3 {[%clk 0:03:02.3]}
15... Nc5 {[%clk 0:02:17.4]} 16. Qc2 {[%clk 0:03:02.1]} 16... Qf6 {[%clk
0:02:10]} 17. dxe6 {[%clk 0:02:59.7]} 17... Rf8 {[%clk 0:01:51.7]} 18. Nb5
{[%clk 0:02:21]} 18... O-O-O {[%clk 0:01:42.4]} 19. Nxa7+ {[%clk 0:02:20.9]}
19... Kb8 {[%clk 0:01:42.3]} 20. Nb5 {[%clk 0:02:21.5]} 20... f4 {[%clk
0:01:13.6]} 21. Bf2 {[%clk 0:02:16.2]} 21... fxe3 {[%clk 0:01:09.7]} 22. Bg3
{[%clk 0:02:16.5]} 22... Qxe6 {[%clk 0:00:44.7]} 23. O-O {[%clk 0:02:16.1]}
23... Qxc4 {[%clk 0:00:44.7]} 24. a4 {[%clk 0:02:14.3]} 24... g4 {[%clk
0:00:41.6]} 25. Rfb1 {[%clk 0:02:05.9]} 25... gxf3 {[%clk 0:00:35.3]} 26. gxf3
{[%clk 0:01:54.1]} 26... Rxf3 {[%clk 0:00:33.9]} 27. a5 {[%clk 0:01:45.1]} 27...
Rf2 {[%clk 0:00:33.9]} 28. Bxf2 {[%clk 0:01:33]} 28... exf2+ {[%clk 0:00:33.7]}
29. Qxf2 {[%clk 0:01:32]} 29... Rg8+ {[%clk 0:00:32.3]} 30. Qg3 {[%clk
0:01:28.7]} 30... Rxg3+ {[%clk 0:00:31.4]} 31. hxg3 {[%clk 0:01:29.6]} 31... Qe2
{[%clk 0:00:31.2]} 0-1

[Event "Early-Titled-Tuesday-Blitz-April-16-2024"]
[Site "Chess.com"]
[Date "2024.04.16"]
[Round "3"]
[White "Louis-Paulsen-Fan"]
[Black "Firouzja2003"]
[Result "0-1"]
[WhiteElo "2366"]
[BlackElo "3045"]
[TimeControl "180+1"]
[EndTime "8:26:58 PDT"]
[Termination "Firouzja2003 won by resignation"]

1. d4 {[%clk 0:03:00.9]} 1... Nf6 {[%clk 0:02:59.5]} 2. Nf3 {[%clk 0:03:01.1]}
2... g6 {[%clk 0:02:59.6]} 3. c4 {[%clk 0:03:01.4]} 3... Bg7 {[%clk 0:02:59.7]}
4. Nc3 {[%clk 0:03:01.7]} 4... O-O {[%clk 0:03:00]} 5. e4 {[%clk 0:03:01.5]}
5... d6 {[%clk 0:03:00.6]} 6. Be2 {[%clk 0:03:02]} 6... e5 {[%clk 0:03:00.9]} 7.
O-O {[%clk 0:03:02.4]} 7... Nc6 {[%clk 0:03:01.3]} 8. d5 {[%clk 0:03:03]} 8...
Ne7 {[%clk 0:03:01.8]} 9. Ne1 {[%clk 0:03:03.4]} 9... Nd7 {[%clk 0:03:01.7]} 10.
f3 {[%clk 0:03:04]} 10... f5 {[%clk 0:03:02.2]} 11. g4 {[%clk 0:03:04.4]} 11...
Kh8 {[%clk 0:03:00.6]} 12. Nd3 {[%clk 0:03:04.2]} 12... Ng8 {[%clk 0:03:00.3]}
13. Kg2 {[%clk 0:03:00.3]} 13... Bh6 {[%clk 0:03:00.5]} 14. h3 {[%clk
0:02:57.7]} 14... Bxc1 {[%clk 0:02:58.5]} 15. Rxc1 {[%clk 0:02:58.6]} 15... a5
{[%clk 0:02:56.9]} 16. a3 {[%clk 0:02:52.4]} 16... b6 {[%clk 0:02:56.4]} 17. b4
{[%clk 0:02:52.1]} 17... axb4 {[%clk 0:02:56.5]} 18. axb4 {[%clk 0:02:53]} 18...
Ba6 {[%clk 0:02:56.6]} 19. Nb2 {[%clk 0:02:42.2]} 19... Ne7 {[%clk 0:02:44.5]}
20. Nba4 {[%clk 0:02:27.6]} 20... fxg4 {[%clk 0:02:38.9]} 21. fxg4 {[%clk
0:02:25.9]} 21... g5 {[%clk 0:02:39]} 22. c5 {[%clk 0:02:04]} 22... Bxe2 {[%clk
0:02:31.4]} 23. Nxe2 {[%clk 0:01:48.6]} 23... Rxf1 {[%clk 0:02:29.7]} 24. Kxf1
{[%clk 0:01:48.8]} 24... Ng6 {[%clk 0:02:30.6]} 25. cxd6 {[%clk 0:01:35.5]}
25... Qf6+ {[%clk 0:02:25.4]} 26. Kg2 {[%clk 0:01:33.1]} 26... Nh4+ {[%clk
0:02:24.4]} 27. Kg1 {[%clk 0:01:18.3]} 27... Qf3 {[%clk 0:02:19.7]} 28. Qf1
{[%clk 0:01:12.3]} 28... Qe3+ {[%clk 0:01:49.2]} 29. Qf2 {[%clk 0:01:07.4]}
29... Qxh3 {[%clk 0:01:48.2]} 30. Qg3 {[%clk 0:00:58.6]} 30... Qxg3+ {[%clk
0:01:48]} 31. Nxg3 {[%clk 0:00:58.9]} 31... cxd6 {[%clk 0:01:48.9]} 32. Nb2
{[%clk 0:00:48.8]} 32... Nf6 {[%clk 0:01:43.3]} 33. Nc4 {[%clk 0:00:41.4]} 33...
Ra2 {[%clk 0:01:42.9]} 34. Nf5 {[%clk 0:00:38.8]} 34... Nf3+ {[%clk 0:01:41.9]}
35. Kf1 {[%clk 0:00:37.6]} 35... Nxg4 {[%clk 0:01:42.7]} 0-1

[Event "Early-Titled-Tuesday-Blitz-April-16-2024"]
[Site "Chess.com"]
[Date "2024.04.16"]
[Round "3"]
[White "SharapovEvgeny"]
[Black "Slovineanu"]
[Result "1-0"]
[WhiteElo "2657"]
[BlackElo "2495"]
[TimeControl "180+1"]
[EndTime "8:26:59 PDT"]
[Termination "SharapovEvgeny won by resignation"]

1. e4 {[%clk 0:02:59.7]} 1... c6 {[%clk 0:02:56.3]} 2. d4 {[%clk 0:02:59.6]}
2... d5 {[%clk 0:02:54.2]} 3. e5 {[%clk 0:03:00]} 3... Bf5 {[%clk 0:02:51.9]} 4.
Be3 {[%clk 0:02:59.3]} 4... e6 {[%clk 0:02:49]} 5. c4 {[%clk 0:02:59.1]} 5...
Bb4+ {[%clk 0:02:44.8]} 6. Nc3 {[%clk 0:02:58.8]} 6... Ne7 {[%clk 0:02:44.8]} 7.
a3 {[%clk 0:02:58.6]} 7... Bxc3+ {[%clk 0:02:43]} 8. bxc3 {[%clk 0:02:59]} 8...
Nd7 {[%clk 0:02:40.7]} 9. Nf3 {[%clk 0:02:58.9]} 9... Qc7 {[%clk 0:02:26.1]} 10.
Nh4 {[%clk 0:02:56.4]} 10... O-O {[%clk 0:02:16.3]} 11. Be2 {[%clk 0:02:56]}
11... dxc4 {[%clk 0:02:08.1]} 12. Bxc4 {[%clk 0:02:55.5]} 12... Be4 {[%clk
0:02:07.6]} 13. O-O {[%clk 0:02:46.8]} 13... c5 {[%clk 0:01:58.7]} 14. Rc1
{[%clk 0:02:40.3]} 14... Nb6 {[%clk 0:01:51.1]} 15. Ba2 {[%clk 0:02:35.5]} 15...
c4 {[%clk 0:01:50.8]} 16. Qg4 {[%clk 0:02:33.9]} 16... Bd3 {[%clk 0:01:48.3]}
17. Rfe1 {[%clk 0:02:30.6]} 17... Nbd5 {[%clk 0:01:46.2]} 18. Bg5 {[%clk
0:02:25.9]} 18... Ng6 {[%clk 0:01:32.8]} 19. Nf3 {[%clk 0:02:18.4]} 19... Qa5
{[%clk 0:01:01.6]} 20. h4 {[%clk 0:02:14.3]} 20... Qxa3 {[%clk 0:00:59.3]} 21.
Ra1 {[%clk 0:02:08.1]} 21... Qxc3 {[%clk 0:00:44.8]} 22. h5 {[%clk 0:02:06]}
22... b5 {[%clk 0:00:41.7]} 23. hxg6 {[%clk 0:02:04.9]} 23... Bxg6 {[%clk
0:00:39.2]} 24. Rec1 {[%clk 0:01:59.3]} 24... Qd3 {[%clk 0:00:38.7]} 25. Bb1
{[%clk 0:01:53.2]} 25... Qe2 {[%clk 0:00:24.2]} 26. Ra2 {[%clk 0:01:45.5]} 26...
Qxa2 {[%clk 0:00:08.2]} 27. Bxa2 {[%clk 0:01:45.1]} 27... c3 {[%clk 0:00:08.4]}
28. Bxd5 {[%clk 0:01:41.4]} 1-0

[Event "Early-Titled-Tuesday-Blitz-April-16-2024"]
[Site "Chess.com"]
[Date "2024.04.16"]
[Round "3"]
[White "VD_coach"]
[Black "lrjchess"]
[Result "1/2-1/2"]
[WhiteElo "2642"]
[BlackElo "2485"]
[TimeControl "180+1"]
[EndTime "8:27:03 PDT"]
[Termination "Game drawn by repetition"]

1. Nf3 {[%clk 0:03:00.9]} 1... g6 {[%clk 0:02:58.1]} 2. d4 {[%clk 0:02:50.9]}
2... Nf6 {[%clk 0:02:53.5]} 3. c4 {[%clk 0:02:51.3]} 3... Bg7 {[%clk 0:02:53.2]}
4. g3 {[%clk 0:02:45.3]} 4... O-O {[%clk 0:02:54.1]} 5. Bg2 {[%clk 0:02:45.8]}
5... d6 {[%clk 0:02:54.5]} 6. O-O {[%clk 0:02:46.3]} 6... Nc6 {[%clk 0:02:51.4]}
7. Nc3 {[%clk 0:02:46.8]} 7... e5 {[%clk 0:02:50.9]} 8. d5 {[%clk 0:02:45.4]}
8... Nb8 {[%clk 0:02:49.9]} 9. e4 {[%clk 0:02:46]} 9... a5 {[%clk 0:02:48.6]}
10. c5 {[%clk 0:02:40.2]} 10... dxc5 {[%clk 0:02:42.6]} 11. Nxe5 {[%clk
0:02:39.6]} 11... Nxe4 {[%clk 0:02:40.8]} 12. Nxe4 {[%clk 0:02:21]} 12... Bxe5
{[%clk 0:02:39.6]} 13. Bg5 {[%clk 0:02:19.8]} 13... f6 {[%clk 0:02:30]} 14. Bh6
{[%clk 0:02:19.6]} 14... Re8 {[%clk 0:02:26.7]} 15. Nxc5 {[%clk 0:02:08.5]}
15... Bxb2 {[%clk 0:02:18.5]} 16. Rb1 {[%clk 0:02:06.6]} 16... Ba3 {[%clk
0:02:18.3]} 17. Nxb7 {[%clk 0:01:51.2]} 17... Qe7 {[%clk 0:02:17]} 18. d6 {[%clk
0:01:41.1]} 18... cxd6 {[%clk 0:02:09.2]} 19. Nxd6 {[%clk 0:01:15.8]} 19... Bxd6
{[%clk 0:02:03.1]} 20. Bxa8 {[%clk 0:01:15.3]} 20... Nd7 {[%clk 0:01:42.4]} 21.
Bd5+ {[%clk 0:01:08.6]} 21... Kh8 {[%clk 0:01:41.9]} 22. Re1 {[%clk 0:01:07.6]}
22... Ne5 {[%clk 0:01:40.2]} 23. f4 {[%clk 0:01:06.7]} 23... Bc5+ {[%clk
0:01:33.8]} 24. Kh1 {[%clk 0:00:59.2]} 24... Ng4 {[%clk 0:01:20.8]} 25. Rxe7
{[%clk 0:00:51.4]} 25... Nf2+ {[%clk 0:01:20.1]} 26. Kg2 {[%clk 0:00:49.8]}
26... Bh3+ {[%clk 0:01:19.1]} 27. Kf3 {[%clk 0:00:34.7]} 27... Bg4+ {[%clk
0:01:18.8]} 28. Kg2 {[%clk 0:00:35]} 28... Bh3+ {[%clk 0:01:18.7]} 29. Kf3
{[%clk 0:00:29.8]} 29... Bg4+ {[%clk 0:01:18.7]} 30. Kg2 {[%clk 0:00:28.1]}
30... Bh3+ {[%clk 0:01:18.7]} 1/2-1/2

[Event "Early-Titled-Tuesday-Blitz-April-16-2024"]
[Site "Chess.com"]
[Date "2024.04.16"]
[Round "3"]
[White "frederiksvane"]
[Black "Harry_Rakkel"]
[Result "1-0"]
[WhiteElo "3044"]
[BlackElo "2738"]
[TimeControl "180+1"]
[EndTime "8:27:05 PDT"]
[Termination "frederiksvane won by resignation"]

1. Nf3 {[%clk 0:03:00.9]} 1... Nf6 {[%clk 0:02:59.2]} 2. e3 {[%clk 0:03:01.4]}
2... d5 {[%clk 0:02:58.4]} 3. b3 {[%clk 0:03:01.6]} 3... e6 {[%clk 0:02:55.8]}
4. Bb2 {[%clk 0:03:01.8]} 4... Be7 {[%clk 0:02:55.3]} 5. g3 {[%clk 0:02:58.8]}
5... O-O {[%clk 0:02:54.7]} 6. Bg2 {[%clk 0:02:59.4]} 6... c5 {[%clk 0:02:54.4]}
7. O-O {[%clk 0:02:59.4]} 7... Nc6 {[%clk 0:02:54.1]} 8. c4 {[%clk 0:02:57.4]}
8... d4 {[%clk 0:02:52.6]} 9. exd4 {[%clk 0:02:57.2]} 9... cxd4 {[%clk
0:02:53.5]} 10. Re1 {[%clk 0:02:52.8]} 10... Ne8 {[%clk 0:02:48.3]} 11. d3
{[%clk 0:02:47.8]} 11... f6 {[%clk 0:02:46.3]} 12. a3 {[%clk 0:02:35.6]} 12...
a5 {[%clk 0:02:45.2]} 13. Nbd2 {[%clk 0:02:35.9]} 13... Nc7 {[%clk 0:02:42.5]}
14. Nh4 {[%clk 0:02:33]} 14... e5 {[%clk 0:02:41.4]} 15. f4 {[%clk 0:02:22.9]}
15... Qe8 {[%clk 0:02:26.9]} 16. Qe2 {[%clk 0:02:05.4]} 16... Bd7 {[%clk
0:01:55.4]} 17. Nhf3 {[%clk 0:01:55.2]} 17... exf4 {[%clk 0:01:47.6]} 18. gxf4
{[%clk 0:01:55.6]} 18... Ne6 {[%clk 0:01:46.8]} 19. f5 {[%clk 0:01:11.9]} 19...
Nf4 {[%clk 0:01:43]} 20. Qe4 {[%clk 0:01:12.2]} 20... Nxg2 {[%clk 0:01:39.2]}
21. Kxg2 {[%clk 0:01:13.1]} 21... Qh5 {[%clk 0:01:36.5]} 22. Qd5+ {[%clk
0:01:09]} 22... Kh8 {[%clk 0:01:31.6]} 23. Qxd7 {[%clk 0:01:09.2]} 23... Ne5
{[%clk 0:01:03.7]} 24. Nxe5 {[%clk 0:00:58.2]} 24... Qg5+ {[%clk 0:01:00.4]} 25.
Kh1 {[%clk 0:00:58.6]} 25... Qxd2 {[%clk 0:00:59.8]} 26. Qxe7 {[%clk 0:00:58.7]}
26... fxe5 {[%clk 0:01:00]} 27. Rg1 {[%clk 0:00:58.8]} 27... Rg8 {[%clk
0:00:59]} 28. f6 {[%clk 0:00:54.9]} 1-0

[Event "Early-Titled-Tuesday-Blitz-April-16-2024"]
[Site "Chess.com"]
[Date "2024.04.16"]
[Round "3"]
[White "Donskov_AN"]
[Black "yuriydovzik"]
[Result "1-0"]
[WhiteElo "2364"]
[BlackElo "2134"]
[TimeControl "180+1"]
[EndTime "8:27:06 PDT"]
[Termination "Donskov_AN won on time"]

1. e4 {[%clk 0:03:00.9]} 1... c6 {[%clk 0:02:58.5]} 2. d4 {[%clk 0:03:00.8]}
2... Na6 {[%clk 0:02:57.7]} 3. Bxa6 {[%clk 0:02:58.5]} 3... Qa5+ {[%clk
0:02:57.1]} 4. Nc3 {[%clk 0:02:56.7]} 4... Qxa6 {[%clk 0:02:56.8]} 5. Nf3 {[%clk
0:02:57]} 5... d6 {[%clk 0:02:53.6]} 6. Be3 {[%clk 0:02:57]} 6... g6 {[%clk
0:02:50.5]} 7. h4 {[%clk 0:02:57]} 7... Nf6 {[%clk 0:02:48.8]} 8. Nd2 {[%clk
0:02:52.1]} 8... h5 {[%clk 0:02:38.2]} 9. f3 {[%clk 0:02:51.7]} 9... Bg7 {[%clk
0:02:37.5]} 10. Qe2 {[%clk 0:02:52.1]} 10... Qxe2+ {[%clk 0:02:35.5]} 11. Nxe2
{[%clk 0:02:52.2]} 11... d5 {[%clk 0:02:24.8]} 12. e5 {[%clk 0:02:51.6]} 12...
Nd7 {[%clk 0:02:19.9]} 13. O-O-O {[%clk 0:02:49.8]} 13... e6 {[%clk 0:02:16.5]}
14. Kb1 {[%clk 0:02:48.1]} 14... b6 {[%clk 0:02:16.4]} 15. Bg5 {[%clk
0:02:43.4]} 15... c5 {[%clk 0:02:13.3]} 16. c3 {[%clk 0:02:42.1]} 16... Ba6
{[%clk 0:02:12]} 17. Nf4 {[%clk 0:02:41.8]} 17... Rc8 {[%clk 0:01:55.7]} 18. Nb3
{[%clk 0:02:41.6]} 18... Nf8 {[%clk 0:01:39]} 19. Rhe1 {[%clk 0:02:40.9]} 19...
Nh7 {[%clk 0:01:36.3]} 20. Nh3 {[%clk 0:02:34]} 20... Nxg5 {[%clk 0:01:32]} 21.
Nxg5 {[%clk 0:02:34.9]} 21... Bh6 {[%clk 0:01:27.2]} 22. f4 {[%clk 0:02:34.9]}
22... Ke7 {[%clk 0:01:25]} 23. g3 {[%clk 0:02:35]} 23... Rc7 {[%clk 0:01:13.6]}
24. Nf3 {[%clk 0:02:20]} 24... Rhc8 {[%clk 0:01:08.9]} 25. Nc1 {[%clk 0:02:18]}
25... Bb7 {[%clk 0:00:56.4]} 26. Nd3 {[%clk 0:02:17.6]} 26... a5 {[%clk
0:00:54.7]} 27. a3 {[%clk 0:02:08.6]} 27... Ba6 {[%clk 0:00:52.3]} 28. Nc1
{[%clk 0:02:05.5]} 28... Bf8 {[%clk 0:00:30.2]} 29. Nb3 {[%clk 0:02:05.3]} 29...
a4 {[%clk 0:00:23]} 30. Nc1 {[%clk 0:02:05.5]} 30... Ke8 {[%clk 0:00:20.7]} 31.
Na2 {[%clk 0:02:05.6]} 31... Be7 {[%clk 0:00:19.2]} 32. Nc1 {[%clk 0:02:04.3]}
32... Bc4 {[%clk 0:00:17.1]} 33. Nd3 {[%clk 0:02:03.9]} 33... Bb3 {[%clk
0:00:12.9]} 34. Rc1 {[%clk 0:02:04.2]} 34... Bc4 {[%clk 0:00:09.2]} 35. Nf2
{[%clk 0:02:04.2]} 35... b5 {[%clk 0:00:03]} 36. dxc5 {[%clk 0:02:03.2]} 36...
Bxc5 {[%clk 0:00:02]} 37. Nd4 {[%clk 0:02:03.6]} 1-0

[Event "Early-Titled-Tuesday-Blitz-April-16-2024"]
[Site "Chess.com"]
[Date "2024.04.16"]
[Round "3"]
[White "shimastream"]
[Black "NikitaShnadrygin"]
[Result "1-0"]
[WhiteElo "3038"]
[BlackElo "2733"]
[TimeControl "180+1"]
[EndTime "8:27:10 PDT"]
[Termination "shimastream won by resignation"]

1. Nf3 {[%clk 0:03:00.9]} 1... Nf6 {[%clk 0:02:59.7]} 2. c4 {[%clk 0:02:59.6]}
2... g6 {[%clk 0:02:59.9]} 3. Nc3 {[%clk 0:02:57.5]} 3... d5 {[%clk 0:03:00.6]}
4. cxd5 {[%clk 0:02:56.1]} 4... Nxd5 {[%clk 0:03:01.5]} 5. Qa4+ {[%clk
0:02:56.5]} 5... Nc6 {[%clk 0:03:00.7]} 6. Ne5 {[%clk 0:02:54.7]} 6... Qd6
{[%clk 0:03:00.8]} 7. Nxc6 {[%clk 0:02:54]} 7... Qxc6 {[%clk 0:02:45.2]} 8. Qd4
{[%clk 0:02:54.1]} 8... Nf6 {[%clk 0:02:44.9]} 9. e4 {[%clk 0:02:53.3]} 9... Qd7
{[%clk 0:02:06.4]} 10. Qe3 {[%clk 0:02:42.5]} 10... Bg7 {[%clk 0:01:56]} 11. Be2
{[%clk 0:02:38.3]} 11... e5 {[%clk 0:01:51]} 12. Qg3 {[%clk 0:02:34.4]} 12...
Qe7 {[%clk 0:01:38.8]} 13. d3 {[%clk 0:02:34.5]} 13... c6 {[%clk 0:01:34.9]} 14.
Be3 {[%clk 0:02:31.1]} 14... b5 {[%clk 0:01:03.5]} 15. Rc1 {[%clk 0:02:22.9]}
15... O-O {[%clk 0:01:02.6]} 16. O-O {[%clk 0:02:21.3]} 16... Bb7 {[%clk
0:00:56.4]} 17. f3 {[%clk 0:02:18.3]} 17... Nd7 {[%clk 0:00:48.2]} 18. Qf2
{[%clk 0:02:09.5]} 18... a6 {[%clk 0:00:47.6]} 19. d4 {[%clk 0:02:08.1]} 19...
exd4 {[%clk 0:00:47.6]} 20. Bxd4 {[%clk 0:02:09]} 20... Bxd4 {[%clk 0:00:45.7]}
21. Qxd4 {[%clk 0:02:09.9]} 21... Rfd8 {[%clk 0:00:34.8]} 22. Rfd1 {[%clk
0:02:06.3]} 22... g5 {[%clk 0:00:25.8]} 23. Bf1 {[%clk 0:01:57]} 23... Qe5
{[%clk 0:00:19.1]} 24. Qe3 {[%clk 0:01:56]} 24... h6 {[%clk 0:00:15.8]} 25. Ne2
{[%clk 0:01:51.4]} 25... Nf6 {[%clk 0:00:13.7]} 26. Qb6 {[%clk 0:01:49.3]} 26...
Qe7 {[%clk 0:00:04.7]} 27. Nd4 {[%clk 0:01:46.2]} 27... Rdb8 {[%clk 0:00:01.7]}
28. Nf5 {[%clk 0:01:45.6]} 28... Qe5 {[%clk 0:00:02]} 29. Nxh6+ {[%clk
0:01:43.2]} 29... Kh7 {[%clk 0:00:02.9]} 30. Nxf7 {[%clk 0:01:42.3]} 30... Qe7
{[%clk 0:00:02.6]} 31. Nxg5+ {[%clk 0:01:42.2]} 1-0

[Event "Early-Titled-Tuesday-Blitz-April-16-2024"]
[Site "Chess.com"]
[Date "2024.04.16"]
[Round "3"]
[White "Artemiki"]
[Black "TitarovVasiliYouTube"]
[Result "0-1"]
[WhiteElo "2424"]
[BlackElo "2607"]
[TimeControl "180+1"]
[EndTime "8:27:11 PDT"]
[Termination "TitarovVasiliYouTube won on time"]

1. e4 {[%clk 0:03:00.9]} 1... Nf6 {[%clk 0:02:58.1]} 2. e5 {[%clk 0:03:00.8]}
2... Nd5 {[%clk 0:02:58.5]} 3. d4 {[%clk 0:03:01.5]} 3... d6 {[%clk 0:02:59.1]}
4. c4 {[%clk 0:03:02.3]} 4... Nb6 {[%clk 0:02:59.6]} 5. exd6 {[%clk 0:03:03]}
5... exd6 {[%clk 0:03:00.5]} 6. Nc3 {[%clk 0:03:02.3]} 6... Be7 {[%clk
0:03:01.2]} 7. Be3 {[%clk 0:03:02.8]} 7... O-O {[%clk 0:03:01.8]} 8. Bd3 {[%clk
0:03:03.3]} 8... Bf6 {[%clk 0:03:02.5]} 9. Nge2 {[%clk 0:03:03.7]} 9... Re8
{[%clk 0:03:03.2]} 10. b3 {[%clk 0:03:03.1]} 10... Bg4 {[%clk 0:03:03]} 11. O-O
{[%clk 0:03:01.1]} 11... Nc6 {[%clk 0:03:02.7]} 12. h3 {[%clk 0:02:56.8]} 12...
Bh5 {[%clk 0:02:57.3]} 13. g4 {[%clk 0:02:36.2]} 13... Bg6 {[%clk 0:02:56.4]}
14. Bxg6 {[%clk 0:02:36.6]} 14... hxg6 {[%clk 0:02:57.3]} 15. Ng3 {[%clk
0:02:33.7]} 15... d5 {[%clk 0:02:49.1]} 16. c5 {[%clk 0:02:30.7]} 16... Nc8
{[%clk 0:02:49.4]} 17. Qd2 {[%clk 0:02:25.9]} 17... Bh4 {[%clk 0:02:44]} 18.
Rae1 {[%clk 0:02:17.3]} 18... b6 {[%clk 0:02:29.5]} 19. cxb6 {[%clk 0:01:51.9]}
19... axb6 {[%clk 0:02:29.3]} 20. Kg2 {[%clk 0:01:50]} 20... N8e7 {[%clk
0:02:16.5]} 21. Bf4 {[%clk 0:01:27.1]} 21... Qd7 {[%clk 0:02:14.6]} 22. Re2
{[%clk 0:01:23.4]} 22... g5 {[%clk 0:01:56.6]} 23. Bxg5 {[%clk 0:00:41.7]} 23...
Bxg5 {[%clk 0:01:38.3]} 24. Qxg5 {[%clk 0:00:42.6]} 24... Nxd4 {[%clk
0:01:38.9]} 25. Re3 {[%clk 0:00:04.3]} 25... Ne6 {[%clk 0:01:37.1]} 26. Qh5
{[%clk 0:00:02.2]} 26... Nf4+ {[%clk 0:01:36.7]} 0-1